[Event "Aktobe Open 2022"]
[Site "Aktobe"]
[Date "2022.06.15"]
[Round "2.9"]
[White "Petrovsky, Nikita"]
[Black "Makhnev, Denis"]
[Result "1-0"]
[ECO "B15"]
[WhiteElo "1993"]
[BlackElo "2505"]
[Annotator "TA"]
[PlyCount "93"]
[EventDate "2022.06.14"]
[EventType "swiss"]
[EventCountry "KAZ"]
[SourceTitle "playchess.com"]
[Source "ChessBase"]
[SourceQuality "1"]
[TimeControl "5400+30"]

{[%evp 12,93,32,21,43,33,45,40,56,59,72,71,90,78,91,76,82,69,69,76,85,74,90,89,118,88,83,-56,83,91,86,69,87,86,77,87,87,78,125,118,168,147,149,143,135,98,98,84,115,112,106,101,168,161,242,240,388,387,362,257,447,358,365,342,352,258,483,353,687,375,514,0,662,0,538,534,535,523,525,516,564,511,518,495]} 1. e4 {[%emt 0:00:03]} c6 {[%emt 0:00:26]} 2. d4 {[%emt 0:00:05]} d5 {[%emt 0:00:06]} 3. Nd2 {[%emt 0:00:04]} dxe4 {[%emt 0:00:44]} 4. Nxe4 {[%emt 0:00:04]} Nf6 {[%emt 0:00:08]} 5. Nxf6+ {[%emt 0:00:11]} exf6 {[%emt 0:00:12]} 6. c3 {[%emt 0:00:05]} Bd6 {[%emt 0:00:17]} 7. Bd3 {[%emt 0:00:08]} Nd7 {[%emt 0:01:05] B15: Caro-Kann: 3 Nc3: 3...g6 and 3...dxe4 4 Nxe4 Nf6 5 Nxf6+ exf6.} 8. Qc2 {[%emt 0:02:16]} h5 {[%emt 0:01:23]} 9. Ne2 {[%emt 1:32:04] [#]} Kf8 $146 {[%emt 0:01:06] White is slightly better.} ({Predecessor:} 9... h4 10. h3 O-O 11. Bf4 Bxf4 12. Nxf4 Re8+ 13. Ne2 Nf8 14. O-O Qd6 15. Rfe1 Bd7 {1-0 (45) Jacobson,A (2286)-Zhai,M (2365) Chess.com INT 2019}) 10. Be3 {[%emt 0:03:56]} Nb6 {[%emt 0:00:26]} 11. c4 $1 {[%emt 0:03:35] Against Nd5. aiming for c5.} Bb4+ {[%emt 0:01:03] [#]} 12. Nc3 $1 {[%emt 0:00:25]} Be6 {[%emt 0:00:32]} 13. a3 {[%emt 0:00:21]} Be7 {[%emt 0:00:52]} 14. b3 {[%emt 0:05:51]} g6 {[%emt 0:02:07]} 15. O-O {[%emt 0:02:59]} f5 {[%emt 0:04:45]} 16. a4 {[%emt 0:16:50]} a5 {[%emt 0:06:30]} 17. Rad1 {[%emt 0:01:11]} Bf6 {[%emt 0:04:56]} 18. d5 {[%emt 0:04:48]} cxd5 {[%emt 0:00:55]} 19. Nxd5 {[%emt 0:05:15]} ({White should play} 19. cxd5 $16 Bd7 20. Bc4) 19... Bxd5 {[%emt 0:01:36]} (19... Nxd5 $15 {stays ahead.} 20. cxd5 Qxd5) 20. cxd5 $16 {[%emt 0:01:49] And now Qc5+ would win.} Kg7 {[%emt 0:00:13]} 21. Bb5 {[%emt 0:09:39] Strongly threatening d6. White is more active. This bishop pair is nice.} Qd6 $1 {[%emt 0:42:18]} (21... Nxd5 $2 22. Qc5 $18) 22. Bxb6 {[%emt 0:16:30]} Qxb6 {[%emt 0:29:50]} 23. d6 {[%emt 0:00:04]} Rac8 {[%emt 0:01:00]} 24. Qd2 {[%emt 0:01:39]} Rc3 {[%emt 0:13:52] [#]} (24... Bc3 $142 25. Qd3 Bf6) 25. Bc4 $1 {[%emt 0:03:12]} h4 {[%emt 0:16:18]} (25... Rd8 $16) 26. Qd5 {[%emt 0:02:56]} Rf8 {[%emt 0:00:18]} 27. h3 {[%emt 0:02:45]} Rc2 {[%emt 0:09:34]} 28. Rd2 {[%emt 0:03:13]} Rxd2 {[%emt 0:01:07]} 29. Qxd2 {[%emt 0:00:02]} Be5 {[%emt 0:00:06]} 30. Rd1 $36 {[%emt 0:00:44][%mdl 2048] White is really pushing.} Rd8 {[%emt 0:02:08][%cal Rd8d6]} 31. d7 {[%emt 0:02:25]} f6 {[%emt 0:01:21]} (31... Qc5 $16 32. Qg5 Bf6) 32. Bb5 $18 {[%emt 0:09:40]} Qe6 {[%emt 0:00:28]} (32... Bc7 {is a better defense.} 33. b4 axb4) 33. Qxa5 {[%emt 0:02:00]} b6 {[%emt 0:00:35]} (33... Qxb3 $142 34. Rc1 (34. Qxd8 Qxd1+ 35. Bf1 Bd6 $16) 34... b6) 34. Qb4 {[%emt 0:00:25]} g5 {[%emt 0:00:05]} 35. Qc4 {[%emt 0:00:29]} Qe7 {[%emt 0:00:09]} (35... Qxc4 36. Bxc4 Kf8) 36. Qd3 {[%emt 0:00:44]} Kg6 {[%emt 0:00:24]} 37. Qf3 {[%emt 0:00:30]} Qe6 {[%emt 0:00:26]} 38. Qd5 {[%emt 0:00:33]} Qe7 {[%emt 0:00:42]} (38... Qxd5 {was called for.} 39. Rxd5 f4) 39. Bd3 {[%emt 0:00:41]} Qb4 $2 {[%emt 0:00:18]} (39... Qd6 40. Bxf5+ Kxf5) 40. Qf3 {[%emt 0:00:26]} Bf4 {[%emt 0:00:17]} 41. Qd5 {[%emt 0:00:54]} Be5 $1 {[%emt 0:00:06]} 42. Qf3 {[%emt 0:00:30]} Bf4 $1 {[%emt 0:00:06]} 43. g3 {[%emt 0:00:26] White is clearly winning.} hxg3 {[%emt 0:00:06]} 44. fxg3 {[%emt 0:00:06]} ({Not} 44. Bxf5+ Kg7 45. Qh5 (45. fxg3 Qc5+ 46. Kf1 Qxf5 $16) 45... gxf2+ 46. Kg2 Qe7 $18) 44... Qc5+ {[%emt 0:00:10]} 45. Kg2 {[%emt 0:00:12] Hoping for b4.} Bb8 {[%emt 0:00:18]} 46. Rf1 {[%emt 0:00:33]} Kg7 {[%emt 0:01:05]} 47. Qxf5 {[%emt 0:00:49] Weighted Error Value: White=0.44/Black=0.45} 1-0

[Event "Aktobe Open 2022"]
[Site "Aktobe"]
[Date "2022.06.15"]
[Round "2.10"]
[White "Utegaliyev, Azamat"]
[Black "Malygin, Vladislav"]
[Result "*"]
[ECO "C24"]
[WhiteElo "2463"]
[BlackElo "1939"]
[Annotator "TA"]
[PlyCount "32"]
[EventDate "2022.06.14"]
[EventType "swiss"]
[EventCountry "KAZ"]
[SourceTitle "playchess.com"]
[Source "ChessBase"]
[SourceQuality "1"]
[TimeControl "5400+30"]

{[%evp 9,32,20,18,-20,-25,-20,22,21,21,22,24,26,204,199,160,33,23,27,40,40,53,38,52,72,135]} 1. e4 {[%emt 0:04:09]} e5 {[%emt 0:00:14]} 2. Bc4 {[%emt 0:00:05]} Nf6 {[%emt 0:00:07]} 3. d3 {[%emt 0:00:04]} c6 {[%emt 0:01:15]} 4. Nf3 {[%emt 0:00:05]} d5 {[%emt 0:02:05]} 5. Bb3 {[%emt 0:00:06]} a5 {[%emt 0:04:16] [#] And now ...a4 would win.} 6. a3 {[%emt 0:00:06] C24: Bishop's Opening: 2...Nf6.} ({Avoid the trap} 6. Nxe5 $2 a4 7. Bxd5 cxd5 8. exd5 Nxd5 $19) 6... Bd6 {[%emt 0:03:38]} 7. Nc3 {[%emt 0:00:08][%cal Re4d5]} dxe4 {[%emt 0:11:19] is the legacy move (7...d4).} 8. Ng5 {[%emt 0:00:18] The position is equal.} O-O {[%emt 0:00:15][%cal Oa5a4]} 9. Ncxe4 {[%emt 0:00:06]} h6 {[%emt 0:04:44]} 10. h4 {[%emt 0:12:18] [#]} Nxe4 $146 {[%emt 0:07:49]} (10... hxg5 $2 11. hxg5 Ng4 12. g6 $18) (10... Na6 $11 {and Black has nothing to worry.}) ({Predecessor:} 10... Na6 11. Qf3 Nc5 12. Nxf6+ Qxf6 13. Qxf6 gxf6 14. Ne4 Nxb3 15. cxb3 Be7 16. Bxh6 Rd8 {0-1 (38) Rabiega,R (2507)-Malek,D (2424) Germany 2015}) 11. Nxe4 $18 {[%emt 0:00:29] Threatens to win with Qh5.} Bf5 {[%emt 0:00:30] [#]} 12. Nxd6 {[%emt 0:07:19] White is more active.} (12. Qh5 $1 $16 {[%cal Rh5f5]} Bxe4 13. dxe4) 12... Qxd6 $14 {[%emt 0:00:07]} 13. g4 {[%emt 0:00:20]} Be6 {[%emt 0:04:38]} 14. Bxe6 {[%emt 0:00:06]} Qxe6 {[%emt 0:02:08]} 15. g5 {[%emt 0:00:06]} e4 {[%emt 0:06:33]} 16. gxh6 {[%emt 0:01:48]} gxh6 {[%emt 0:12:25] Weighted Error Value: White=0.23 (precise) /Black=0.35} (16... exd3+ $142 17. Be3 Qe4) *

[Event "Aktobe Open 2022"]
[Site "Aktobe"]
[Date "2022.06.16"]
[Round "3.1"]
[White "Ponkratov, Pavel"]
[Black "Moisseyenko, Ilya"]
[Result "1-0"]
[ECO "B38"]
[WhiteElo "2624"]
[BlackElo "2291"]
[Annotator "TA"]
[PlyCount "71"]
[EventDate "2022.06.14"]
[EventType "swiss"]
[EventCountry "KAZ"]
[SourceTitle "playchess.com"]
[Source "ChessBase"]
[SourceQuality "1"]
[TimeControl "5400+30"]

{[%evp 19,71,52,44,37,48,44,38,39,38,37,66,58,69,55,101,77,74,53,73,66,74,75,118,94,144,131,152,136,145,136,162,125,239,268,314,320,365,375,376,232,249,227,233,233,624,622,618,619,1006,969,1118,1068,1059,933]} 1. c4 {[%emt 0:00:02]} Nf6 {[%emt 0:04:11]} 2. Nc3 {[%emt 0:00:07]} c5 {[%emt 0:00:44]} 3. Nf3 {[%emt 0:00:07]} g6 {[%emt 0:00:26]} 4. d4 {[%emt 0:00:09]} cxd4 {[%emt 0:00:14]} 5. Nxd4 {[%emt 0:00:04]} Nc6 {[%emt 0:00:46]} 6. e4 {[%emt 0:00:06]} d6 {[%emt 0:00:54]} 7. Be2 {[%emt 0:00:23]} Bg7 {[%emt 0:00:05]} 8. Be3 {[%emt 0:00:04]} O-O {[%emt 0:00:07]} 9. O-O {[%emt 0:00:05]} Bd7 {[%emt 0:00:29]} 10. Nc2 {[%emt 0:00:06]} Rc8 {[%emt 0:00:42] 10...Qa5 gains popularity.} 11. Rc1 {[%emt 0:01:59] B38: Sicilian: Maroczy Bind with 5...Bg7 and 7...0-0.} a6 {[%emt 0:05:17]} 12. f3 {[%emt 0:06:25]} Ne5 {[%emt 0:04:45]} 13. Na3 {[%emt 0:00:38] White is slightly better.} Be6 {[%emt 0:10:23][%cal Re6c4]} 14. b3 {[%emt 0:05:49]} Qa5 {[%emt 0:15:40]} 15. Nab1 {[%emt 0:00:09]} Bd7 {[%emt 0:02:01] [#]} 16. a3 $146 {[%emt 0:00:52]} ({Predecessor:} 16. Qd2 Rfe8 17. a3 Rb8 18. g4 h5 19. g5 Nh7 20. b4 Qd8 21. Nd5 b5 22. c5 {½-½ (51) Bennedik,M (2423)-Schmitzer,K (2430) ICCF email 2004}) 16... Qc7 {[%emt 0:01:24]} (16... g5 $14 {should be considered.}) 17. Kh1 {[%emt 0:00:49]} Qb8 {[%emt 0:01:01]} 18. a4 {[%emt 0:03:01]} h5 {[%emt 0:10:50]} 19. Qe1 {[%emt 0:06:21]} Bc6 {[%emt 0:03:46] White now steadily converts the win.} 20. Nd2 {[%emt 0:09:34]} Kh7 {[%emt 0:05:45]} 21. h3 {[%emt 0:00:58]} a5 {[%emt 0:03:13]} (21... Ned7 $142) 22. f4 $16 {[%emt 0:02:59]} Ned7 {[%emt 0:00:04]} 23. Bd3 {[%emt 0:00:04]} b6 {[%emt 0:02:48]} 24. Qh4 {[%emt 0:01:31]} Nc5 {[%emt 0:00:25]} 25. Bc2 {[%emt 0:00:05]} Qb7 {[%emt 0:07:01]} (25... Nfd7 $16 26. Nd5 Bf6) 26. Nd5 $18 {[%emt 0:00:07]} Bxd5 {[%emt 0:00:36]} 27. exd5 {[%emt 0:00:05]} ({Less strong is} 27. cxd5 Qa6 $14) 27... e6 {[%emt 0:02:02]} 28. dxe6 {[%emt 0:03:30]} ({Weaker is} 28. Bd4 Ne8 $18) 28... fxe6 {[%emt 0:00:15]} 29. Rce1 {[%emt 0:00:04][%cal Bc1e1,Be1e6,Be6e7][%mdl 32]} Nce4 {[%emt 0:07:36]} 30. Nf3 {[%emt 0:00:12] [#] Black must now prevent Ng5+.} d5 {[%emt 0:00:54]} 31. Bd4 {[%emt 0:00:59]} Bh6 $2 {[%emt 0:02:41]} (31... Rfe8 32. Rd1 Kh8) 32. Bxf6 {[%emt 0:00:27] White is clearly winning.} Nxf6 {[%emt 0:03:36]} 33. Rxe6 {[%emt 0:00:06]} Qg7 {[%emt 0:01:52]} 34. Ne5 {[%emt 0:00:08]} Ne4 {[%emt 0:00:40]} 35. Bxe4 {[%emt 0:00:07]} dxe4 {[%emt 0:00:33]} 36. Re7 {[%emt 0:00:04] Weighted Error Value: White=0.11 (very precise) /Black=0.36} 1-0

[Event "Aktobe Open 2022"]
[Site "Aktobe"]
[Date "2022.06.16"]
[Round "3.2"]
[White "Kuderinov, Kirill"]
[Black "Vakhidov, Jakhongir"]
[Result "0-1"]
[ECO "A45"]
[WhiteElo "2409"]
[BlackElo "2552"]
[Annotator "TA"]
[PlyCount "74"]
[EventDate "2022.06.14"]
[EventType "swiss"]
[EventCountry "KAZ"]
[SourceTitle "playchess.com"]
[Source "ChessBase"]
[SourceQuality "1"]
[TimeControl "5400+30"]

{[%evp 16,74,-35,-37,0,-78,-79,-72,-26,-30,-59,-63,-37,-47,-26,-29,-35,-35,-30,-96,-95,-104,-95,-105,-105,-97,-77,-78,-75,-95,-108,-146,-139,-154,-140,-152,-164,-151,-152,-154,-159,-157,-151,-154,-156,-160,-150,-175,-129,-127,-125,-158,-147,-225,-195,-294,-178,-256,-255,-234,-218]} 1. d4 {[%emt 0:00:03]} Nf6 {[%emt 0:00:27]} 2. e3 {[%emt 0:00:12]} g6 {[%emt 0:00:24]} 3. f4 {[%emt 0:00:26]} Bg7 {[%emt 0:00:16]} 4. Nf3 {[%emt 0:00:05]} O-O {[%emt 0:00:21]} 5. Bd3 {[%emt 0:00:12]} c5 {[%emt 0:00:42]} 6. c3 {[%emt 0:00:06]} d6 {[%emt 0:00:11]} 7. O-O {[%emt 0:00:12]} Nc6 {[%emt 0:00:07][%cal Bb8c6,Bc6e7,Be7f5,Bf5d6][%mdl 32]} 8. Bc2 {[%emt 0:20:05]} cxd4 {[%emt 0:19:48]} 9. exd4 {[%emt 0:01:15]} e5 {[%emt 0:09:47] A45: Trompowsky Attack.} 10. d5 {[%emt 0:01:45]} (10. fxe5 $11 dxe5 11. Nxe5) 10... Ne7 $17 {[%emt 0:08:33] [#]} 11. fxe5 $146 {[%emt 0:08:54]} ({Predecessor:} 11. c4 exf4 12. Bxf4 Nh5 13. Bg5 Qb6+ 14. Kh1 Nf5 15. Bb3 Bxb2 16. Nbd2 h6 17. Rb1 hxg5 18. Rxb2 {0-1 (27) Costa Trave,J (1947)-Vinardell Cruanas,S (2167) Figueres 2014}) 11... Nfxd5 {[%emt 0:05:23]} (11... dxe5 $17 12. c4 Qc7) 12. c4 {[%emt 0:06:19]} Nb4 {[%emt 0:00:40]} 13. exd6 {[%emt 0:00:07]} Nf5 {[%emt 0:00:13]} 14. Bb3 {[%emt 0:13:23]} (14. c5 Qa5 15. Kh1 Qxc5 $17) 14... Qxd6 {[%emt 0:07:42]} 15. Qxd6 {[%emt 0:01:43]} Nxd6 {[%emt 0:00:02]} 16. Nc3 {[%emt 0:00:12]} Be6 {[%emt 0:07:55]} 17. Nd5 {[%emt 0:01:23]} (17. Ng5 $11) 17... Bxd5 {[%emt 0:01:37]} 18. cxd5 {[%emt 0:00:06]} Nd3 {[%emt 0:00:14] Inhibits Bf4.} 19. Rb1 {[%emt 0:07:08]} Rfc8 {[%emt 0:00:40][%cal Bf8c8,Bc8c7,Bc7c4][%mdl 32] Black is much more active.} 20. Bg5 {[%emt 0:04:24]} Rc7 {[%emt 0:01:59] Against Be7} ({Don't do} 20... Bxb2 21. Rfd1 $16) ({Of course not} 20... Nxb2 $6 21. Be7 Nf5 22. d6 Nxe7 23. dxe7 $11) 21. Rfd1 {[%emt 0:06:55]} Nxb2 {[%emt 0:02:03] Pair of Knights!} 22. Rd2 {[%emt 0:00:13]} Nbc4 {[%emt 0:00:30]} 23. Bxc4 {[%emt 0:00:06]} Rxc4 {[%emt 0:00:52]} 24. Be7 {[%emt 0:01:37]} Bf8 {[%emt 0:00:37]} ({Worse is} 24... Ne4 25. Rd3 $17) 25. Bxd6 {[%emt 0:05:08]} Bxd6 {[%emt 0:00:02]} 26. Rxb7 {[%emt 0:00:36]} Bc5+ {[%emt 0:00:13]} 27. Kf1 {[%emt 0:00:03]} Rc1+ {[%emt 0:00:08]} 28. Ne1 {[%emt 0:00:02]} Re8 {[%emt 0:00:36][%csl Ge8][%cal Rc1e1] [#]} 29. Re2 {[%emt 0:00:04]} Rd8 $36 {[%emt 0:00:06][%mdl 2048] Keeping White busy.} 30. g3 {[%emt 0:08:55]} Rxd5 {[%emt 0:01:39]} 31. Kg2 {[%emt 0:00:02]} Bb6 {[%emt 0:01:33]} ({Black should play} 31... g5 $19 32. g4 h6) 32. Nf3 {[%emt 0:00:55]} Rc7 {[%emt 0:01:39]} 33. Rb8+ {[%emt 0:00:05]} Kg7 {[%emt 0:00:04]} 34. g4 {[%emt 0:00:35]} (34. Rbe8 $17 {was necessary.}) 34... h6 {[%emt 0:02:07]} 35. h4 {[%emt 0:01:56]} (35. Rbe8 $142) 35... Rcd7 {[%emt 0:03:25]} 36. g5 {[%emt 0:01:08]} (36. Ree8 $142) 36... hxg5 $19 {[%emt 0:00:24]} 37. hxg5 {[%emt 0:00:42]} Bd8 {[%emt 0:00:58] Weighted Error Value: White=0.25 (precise) /Black=0.14 (very precise)} 0-1

[Event "Aktobe Open 2022"]
[Site "Aktobe"]
[Date "2022.06.16"]
[Round "3.3"]
[White "Ansat, Aldiyar"]
[Black "Rychagov, Andrey"]
[Result "1/2-1/2"]
[ECO "C19"]
[WhiteElo "2314"]
[BlackElo "2549"]
[Annotator "TA"]
[PlyCount "65"]
[EventDate "2022.06.14"]
[EventType "swiss"]
[EventCountry "KAZ"]
[SourceTitle "playchess.com"]
[Source "ChessBase"]
[SourceQuality "1"]
[TimeControl "5400+30"]

{[%evp 18,65,0,-17,0,0,0,0,0,0,0,0,0,0,0,0,-7,-22,0,0,0,0,0,0,12,8,11,10,10,3,13,11,29,34,17,-4,22,23,25,0,0,0,0,0,0,0,0,0,0,0]} 1. e4 {[%emt 0:01:58]} e6 {[%emt 0:00:41]} 2. d4 {[%emt 0:00:06]} d5 {[%emt 0:00:07]} 3. Nc3 {[%emt 0:00:04]} Bb4 {[%emt 0:00:34]} 4. e5 {[%emt 0:00:09]} c5 {[%emt 0:00:26]} 5. a3 {[%emt 0:00:11][%cal Ba2a3,Ba3a4][%mdl 32]} Bxc3+ {[%emt 0:00:07]} 6. bxc3 {[%emt 0:00:05]} Ne7 {[%emt 0:00:06]} 7. h4 {[%emt 0:01:47]} Qc7 {[%emt 0:02:07]} 8. h5 {[%emt 0:03:13]} h6 {[%emt 0:00:40]} 9. Nf3 {[%emt 0:03:25] 9.Rb1 is more advanced technology.} b6 {[%emt 0:01:54]} 10. a4 {[%emt 0:04:32]} Ba6 {[%emt 0:01:19] C19: French: 3 Nc3 Bb4: Main line: 7 Nf3 and 7 a4.} 11. Bb5+ {[%emt 0:00:50]} Bxb5 {[%emt 0:02:25]} 12. axb5 {[%emt 0:00:02]} a6 {[%emt 0:00:42]} 13. O-O {[%emt 0:12:07]} Ra7 {[%emt 0:18:02] [#]} 14. Qe2 $146 {[%emt 0:17:53][%cal Rb5a6]} ({Predecessor:} 14. bxa6 Rxa6 15. Rxa6 Nxa6 16. Nh4 O-O 17. Qg4 Kh7 18. f4 {1-0 (36) Hansen,E (2614)-Cuenca Jimenez,J (2513) Linares 2017}) 14... axb5 {[%emt 0:06:01]} 15. Qxb5+ {[%emt 0:00:20]} Nd7 {[%emt 0:05:09]} 16. Rxa7 {[%emt 0:06:36]} Qxa7 {[%emt 0:00:11]} 17. c4 {[%emt 0:00:28]} O-O {[%emt 0:21:44]} 18. cxd5 {[%emt 0:02:21]} Nxd5 {[%emt 0:00:45]} 19. c4 {[%emt 0:01:12]} Nc3 {[%emt 0:10:14]} 20. Qb2 {[%emt 0:00:16]} cxd4 {[%emt 0:01:06]} 21. Nxd4 {[%emt 0:00:13][%cal Bf3d4,Bd4b5,Bb5d6][%mdl 32]} Ne4 {[%emt 0:02:55]} 22. Qe2 {[%emt 0:23:21]} Ndc5 {[%emt 0:02:18]} 23. Nb5 {[%emt 0:02:35]} Qa4 {[%emt 0:07:15]} 24. Be3 {[%emt 0:01:37]} Rd8 {[%emt 0:02:29]} 25. Bd4 {[%emt 0:02:54]} Qb4 {[%emt 0:01:58]} 26. Nd6 {[%emt 0:08:05]} Qd2 {[%emt 0:03:59]} (26... Nxd6 {keeps more tension.} 27. exd6 Nd3 28. Bxg7 Kxg7 29. Qxd3 Qxd6 30. Qf3 Qd4) 27. Qxd2 {[%emt 0:00:10]} Nxd2 {[%emt 0:00:04] Pair of Knights!} 28. Rd1 {[%emt 0:00:07]} Nde4 {[%emt 0:02:32] The position is equal.} 29. Rb1 {[%emt 0:02:36]} Nxd6 {[%emt 0:01:29]} 30. exd6 {[%emt 0:00:05]} Rxd6 {[%emt 0:00:09]} 31. Bxc5 {[%emt 0:00:03]} bxc5 {[%emt 0:00:04]} 32. Rb8+ {[%emt 0:00:02]} Kh7 {[%emt 0:00:08]} 33. Rc8 {[%emt 0:00:03] A balanced but interesting game.  Weighted Error Value: White=0.04 (flawless) /Black=0.07 (flawless)} 1/2-1/2

[Event "Aktobe Open 2022"]
[Site "Aktobe"]
[Date "2022.06.16"]
[Round "3.4"]
[White "Vokhidov, Shamsiddin"]
[Black "Sadubayev, Airat"]
[Result "0-1"]
[ECO "C92"]
[WhiteElo "2536"]
[BlackElo "2317"]
[Annotator "TA"]
[PlyCount "114"]
[EventDate "2022.06.14"]
[EventType "swiss"]
[EventCountry "KAZ"]
[SourceTitle "playchess.com"]
[Source "ChessBase"]
[SourceQuality "1"]
[TimeControl "5400+30"]

{[%evp 23,114,0,0,0,0,0,0,0,0,0,0,0,0,0,0,0,0,-15,0,0,0,0,0,-12,0,-91,-84,-85,-93,-76,-85,-92,-83,-87,-71,-86,-78,-165,-157,-339,-339,-327,-312,-330,-323,-431,-287,-381,-377,-384,-384,-390,-383,-379,-382,-401,-315,-344,-301,-302,-302,-443,-376,-434,-416,-425,-403,-468,-457,-657,-602,-602,-379,-1130,-1079,-965,-958,-911,-884,-794,-727,-674,-566,-531,-525,-29973,-29975,-29975,-29975,-29973,-29971,-5206,-1181]} 1. e4 {[%emt 0:00:04]} e5 {[%emt 0:01:00]} 2. Nf3 {[%emt 0:00:13]} Nc6 {[%emt 0:00:17]} 3. Bb5 {[%emt 0:00:06]} a6 {[%emt 0:00:13]} 4. Ba4 {[%emt 0:00:03]} Nf6 {[%emt 0:00:13]} 5. O-O {[%emt 0:00:05]} b5 {[%emt 0:00:16]} 6. Bb3 {[%emt 0:00:05]} Be7 {[%emt 0:00:14]} 7. Re1 {[%emt 0:05:36]} d6 {[%emt 0:01:37]} 8. c3 {[%emt 0:00:05]} O-O {[%emt 0:00:25]} 9. h3 {[%emt 0:00:02]} Bb7 {[%emt 0:00:37]} 10. d4 {[%emt 0:00:14][%cal Bd2d4,Bd4d5][%mdl 32]} Re8 {[%emt 0:00:56]} 11. Nbd2 {[%emt 0:00:16]} Bf8 {[%emt 0:02:12]} 12. Ng5 {[%emt 0:06:36]} Re7 {[%emt 0:05:27]} 13. d5 {[%emt 0:00:55] C92: Closed Ruy Lopez: 9...Be6, Karpov and Flohr-Zaitsev Variations.} Na5 {[%emt 0:09:44]} 14. Bc2 {[%emt 0:00:03]} c6 {[%emt 0:00:11]} 15. b4 {[%emt 0:01:08] The position is equal.} Nc4 {[%emt 0:00:06]} 16. Nxc4 {[%emt 0:00:06]} bxc4 {[%emt 0:00:08]} 17. dxc6 {[%emt 0:00:05]} Bxc6 {[%emt 0:00:11]} 18. Nf3 {[%emt 0:00:18]} h6 {[%emt 0:03:41] Inhibits Bg5.} 19. Qe2 {[%emt 0:05:14]} Rc8 {[%emt 0:00:34]} 20. Bb2 {[%emt 0:03:14] [#]} g6 $146 {[%emt 0:11:19]} ({Predecessor:} 20... Bb7 21. Rad1 Qc7 22. Nh2 d5 23. exd5 Nxd5 24. Qe4 Nf6 25. Qh4 Nd5 26. Qe4 Nf6 27. Qh4 {½-½ (27) Pierzak,R (2510)-Janous,P (2349) ICCF email 2009}) 21. Rad1 {[%emt 0:02:04]} Bg7 {[%emt 0:01:09]} 22. Nd2 {[%emt 0:07:00]} Rec7 $1 {[%emt 0:04:11][%cal Be7c7,Bc7c6,Bc6d6][%mdl 32]} 23. a4 {[%emt 0:01:29]} (23. Nxc4 $2 Bb5 24. Rxd6 Qe7 $19) 23... Ba8 {[%emt 0:04:26]} 24. b5 {[%emt 0:14:05]} (24. Bc1 $11) 24... axb5 $1 $17 {[%emt 0:00:14]} 25. axb5 {[%emt 0:00:02] [#]} d5 $1 {[%emt 0:05:59]} 26. b6 {[%emt 0:23:53]} Rc6 {[%emt 0:03:04]} 27. exd5 {[%emt 0:00:04]} Nxd5 {[%emt 0:00:38]} 28. Be4 {[%emt 0:02:14][%cal Od2c4]} Nf4 {[%emt 0:12:47]} 29. Qe3 {[%emt 0:02:46][%cal Od2c4] Strongly threatening Nxc4!} Qxb6 {[%emt 0:01:00]} 30. Nxc4 {[%emt 0:03:06]} Qb5 $36 {[%emt 0:04:13][%mdl 2048] Black has strong initiative.} 31. Nd6 {[%emt 0:01:39] [#] This move loses the game for White.} ({Not} 31. Bxc6 $2 Qxc6 32. f3 Qxc4 $19) (31. Nxe5 $17 Re6 32. Qxf4 Bxe5 33. Qd2) 31... Rxd6 $1 $19 {[%emt 0:03:00]} ({Less strong is} 31... Qxb2 32. Bxc6 Bxc6 33. Nxc8 $16) 32. Rxd6 {[%emt 0:00:02] Threatens to win with Rb6.} Bxe4 {[%emt 0:00:33]} ({Avoid the trap} 32... Qxb2 $2 33. Bxa8 Rxa8 34. Rd2 $19) 33. Qxe4 {[%emt 0:00:02]} Qxb2 {[%emt 0:00:10]} 34. Rc6 {[%emt 0:00:01]} Rd8 {[%emt 0:06:17]} 35. Qc4 {[%emt 0:00:20]} Qb7 {[%emt 0:03:01]} 36. Qa6 {[%emt 0:00:02]} Qe7 {[%emt 0:01:01] ...Qg5 is the strong threat.} 37. Rc8 {[%emt 0:00:35]} Kh7 {[%emt 0:00:30] aiming for ...Qg5.} 38. Rxd8 {[%emt 0:00:18]} Qxd8 {[%emt 0:00:03]} 39. Qb7 {[%emt 0:00:39]} Qg5 {[%emt 0:01:59]} 40. Re3 {[%emt 0:01:31]} Qf5 {[%emt 0:02:49]} 41. c4 {[%emt 0:01:21]} Qc2 {[%emt 0:03:56]} 42. Qe4 {[%emt 0:06:27]} (42. Qxf7 {was the only chance.} Qd1+ 43. Kh2) 42... Qd2 {[%emt 0:01:02] And now ...f5 would win.} 43. Re1 {[%emt 0:01:22]} f5 {[%emt 0:01:08]} 44. Qe3 {[%emt 0:01:24]} Qc2 {[%emt 0:00:25]} 45. Rf1 {[%emt 0:04:35]} Qxc4 {[%emt 0:00:32] Hoping for ...Ne2+.} 46. Ra1 {[%emt 0:01:08]} (46. Rd1 $142 h5 47. Kh2) 46... Qd5 {[%emt 0:00:38][%csl Gf4][%cal Rd5g2]} 47. f3 {[%emt 0:00:06]} Qb7 {[%emt 0:00:34]} 48. Ra7 $2 {[%emt 0:00:18]} (48. Rd1) 48... Qb1+ {[%emt 0:01:10]} 49. Kh2 {[%emt 0:00:21]} Qb2 {[%emt 0:00:15][%csl Gf4][%cal Rb2g2]} 50. Qg1 {[%emt 0:00:02]} e4 {[%emt 0:00:30]} 51. fxe4 {[%emt 0:00:04]} Qe5 {[%emt 0:03:41] ( -> ...Ne2+)} 52. Qe3 {[%emt 0:02:07]} Nd5+ {[%emt 0:00:52]} 53. Qg3 {[%emt 0:00:01] White wants to mate with Qxe5.} Qxe4 {[%emt 0:00:19]} 54. Qd6 {[%emt 0:00:25]} Ne3 {[%emt 0:00:50][%csl Ge3][%cal Re4g2]} 55. Rxg7+ {[%emt 0:00:44]} Kxg7 {[%emt 0:00:04][%csl Ge3][%cal Re4g2]} 56. Qd7+ {[%emt 0:00:06]} Kf8 {[%emt 0:00:20][%csl Ge3][%cal Re4g2]} 57. Qd6+ {[%emt 0:00:13]} Kf7 {[%emt 0:00:08] Weighted Error Value: White=0.64/Black=0.17 (very precise)} 0-1